{"text_format":"3","workbook":"xlsx","n_sheets":3,"sheets":["Érdeklődők adatai","Előrejelzett értékesítés ","Havi súlyozott előrejelzés"],"not_rendered":{"charts":1,"defined_names":10},"read":"whole","date_system":"1900"}

{"sheet":"Érdeklődők adatai","index":0,"n_rows":9,"n_cols":10,"rows_kept":9}
[null,"Cég neve"]
[null,"Érdeklődők részletes nyilvántartása"]
[null,{"$f":"TODAY()","v":"2022-04-08"}]
[{"$nulls":8},{"$f":"Cégnév","v":"Cég neve"},"BIZALMAS"]
[null,"Érdeklődő neve","Érdeklődő elérhetősége","Érdeklődő \nforrása","Érdeklődő \nrégiója","Érdeklődő \ntípusa","Potenciális lehetőség","Esély \naz értékesítésre","Előrejelzés \nvége","Súlyozott \nelőrejelzés"]
[null,"A. Datum Corporation",{"$nulls":3},"Stratégiai",{"v":300000,"d":"300,000.00 Ft"},{"v":0.9,"d":"90%"},"Január",{"$f":"IFERROR(IF(ÉrdeklődőkAdatai[[#This Row],[Esély \naz értékesítésre]]<>\"\",ÉrdeklődőkAdatai[[#This Row],[Esély \naz értékesítésre]]*ÉrdeklődőkAdatai[[#This Row],[Potenciális lehetőség]],\"\"),\"\")","v":{"v":270000,"d":"270,000.00 Ft"}}]
[null,"Adventure Works",{"$nulls":3},"Stratégiai",{"v":200000,"d":"200,000.00 Ft"},{"v":0.1,"d":"10%"},"Február",{"$f":"IFERROR(IF(ÉrdeklődőkAdatai[[#This Row],[Esély \naz értékesítésre]]<>\"\",ÉrdeklődőkAdatai[[#This Row],[Esély \naz értékesítésre]]*ÉrdeklődőkAdatai[[#This Row],[Potenciális lehetőség]],\"\"),\"\")","v":{"v":20000,"d":"20,000.00 Ft"}}]
[null,"Alpine Ski House",{"$nulls":3},"Taktikai",{"v":100000,"d":"100,000.00 Ft"},{"v":0.2,"d":"20%"},"Március",{"$f":"IFERROR(IF(ÉrdeklődőkAdatai[[#This Row],[Esély \naz értékesítésre]]<>\"\",ÉrdeklődőkAdatai[[#This Row],[Esély \naz értékesítésre]]*ÉrdeklődőkAdatai[[#This Row],[Potenciális lehetőség]],\"\"),\"\")","v":{"v":20000,"d":"20,000.00 Ft"}}]
[null,"Összeg",{"$nulls":4},{"$f":"SUBTOTAL(109,ÉrdeklődőkAdatai[Potenciális lehetőség])","v":{"v":600000,"d":"600,000.00 Ft"}},null,null,{"$f":"SUBTOTAL(109,ÉrdeklődőkAdatai[Súlyozott \nelőrejelzés])","v":{"v":310000,"d":"310,000.00 Ft"}}]

{"sheet":"Előrejelzett értékesítés ","index":1,"n_rows":21,"n_cols":14,"rows_kept":21,"merged":[[3,12,3,13]]}
[null,{"$f":"Cégnév","v":"Cég neve"}]
[null,"Előrejelzett értékesítés"]
[null,{"$f":"NyilvántartóDátuma","v":"2022-04-08"}]
[{"$nulls":11},{"$f":"Cégnév","v":"Cég neve"},"BIZALMAS"]
[null,"Érdeklődő neve","Januári \nelőrejelzés","Februári \nelőrejelzés","Márciusi \nelőrejelzés","Áprilisi \nelőrejelzés","Májusi \nelőrejelzés","Júniusi \nelőrejelzés","Júliusi előrejelzés","Augusztusi \nelőrejelzés","Szeptemberi \nelőrejelzés","Októberi \nelőrejelzés","Novemberi \nelőrejelzés","Decemberi \nelőrejelzés"]
[null,{"$f":"IFERROR(IF(AND(ÉrdeklődőkAdatai[[#This Row],[Érdeklődő neve]] <> \"\", ROW(ElőrejelzettÉrtékesítés[Érdeklődő neve])<>UtolsóBejegyzés),ÉrdeklődőkAdatai[Érdeklődő neve], \"\"),\"\")","v":"A. Datum Corporation"},{"$f":"IFERROR(IF(ÉrdeklődőkAdatai[[#This Row],[Előrejelzés \nvége]] <>\"\",IF(ÉrdeklődőkAdatai[[#This Row],[Előrejelzés \nvége]]= \"Január\",ÉrdeklődőkAdatai[Súlyozott \nelőrejelzés],0),\"\"),\"\")","v":{"v":270000,"d":"270,000 Ft"}},{"$f":"IFERROR(IF(ÉrdeklődőkAdatai[[#This Row],[Előrejelzés \nvége]] <>\"\",IF(ÉrdeklődőkAdatai[[#This Row],[Előrejelzés \nvége]] = \"Február\",ÉrdeklődőkAdatai[Súlyozott \nelőrejelzés],0),\"\"),\"\")","v":{"v":0,"d":"0 Ft"}},{"$f":"IFERROR(IF(ÉrdeklődőkAdatai[[#This Row],[Előrejelzés \nvége]] <>\"\",IF(ÉrdeklődőkAdatai[[#This Row],[Előrejelzés \nvége]] = \"Március\",ÉrdeklődőkAdatai[Súlyozott \nelőrejelzés],0),\"\"),\"\")","v":{"v":0,"d":"0 Ft"}},{"$f":"IFERROR(IF(ÉrdeklődőkAdatai[[#This Row],[Előrejelzés \nvége]] <>\"\",IF(ÉrdeklődőkAdatai[[#This Row],[Előrejelzés \nvége]] = \"Áprilisi\",ÉrdeklődőkAdatai[Súlyozott \nelőrejelzés],0),\"\"),\"\")","v":{"v":0,"d":"0 Ft"}},{"$f":"IFERROR(IF(ÉrdeklődőkAdatai[[#This Row],[Előrejelzés \nvége]] <>\"\",IF(ÉrdeklődőkAdatai[[#This Row],[Előrejelzés \nvége]] = \"Májusi\",ÉrdeklődőkAdatai[Súlyozott \nelőrejelzés],0),\"\"),\"\")","v":{"v":0,"d":"0 Ft"}},{"$f":"IFERROR(IF(ÉrdeklődőkAdatai[[#This Row],[Előrejelzés \nvége]] <>\"\",IF(ÉrdeklődőkAdatai[[#This Row],[Előrejelzés \nvége]] = \"Júniusi\",ÉrdeklődőkAdatai[Súlyozott \nelőrejelzés],0),\"\"),\"\")","v":{"v":0,"d":"0 Ft"}},{"$f":"IFERROR(IF(ÉrdeklődőkAdatai[[#This Row],[Előrejelzés \nvége]] <>\"\",IF(ÉrdeklődőkAdatai[[#This Row],[Előrejelzés \nvége]] = \"Júliusi\",ÉrdeklődőkAdatai[Súlyozott \nelőrejelzés],0),\"\"),\"\")","v":{"v":0,"d":"0 Ft"}},{"$f":"IFERROR(IF(ÉrdeklődőkAdatai[[#This Row],[Előrejelzés \nvége]] <>\"\",IF(ÉrdeklődőkAdatai[[#This Row],[Előrejelzés \nvége]] = \"Augusztusi\",ÉrdeklődőkAdatai[Súlyozott \nelőrejelzés],0),\"\"),\"\")","v":{"v":0,"d":"0 Ft"}},{"$f":"IFERROR(IF(ÉrdeklődőkAdatai[[#This Row],[Előrejelzés \nvége]] <>\"\",IF(ÉrdeklődőkAdatai[[#This Row],[Előrejelzés \nvége]] = \"Szeptemberi\",ÉrdeklődőkAdatai[Súlyozott \nelőrejelzés],0),\"\"),\"\")","v":{"v":0,"d":"0 Ft"}},{"$f":"IFERROR(IF(ÉrdeklődőkAdatai[[#This Row],[Előrejelzés \nvége]] <>\"\",IF(ÉrdeklődőkAdatai[[#This Row],[Előrejelzés \nvége]] = \"Októberi\",ÉrdeklődőkAdatai[Súlyozott \nelőrejelzés],0),\"\"),\"\")","v":{"v":0,"d":"0 Ft"}},{"$f":"IFERROR(IF(ÉrdeklődőkAdatai[[#This Row],[Előrejelzés \nvége]] <>\"\",IF(ÉrdeklődőkAdatai[[#This Row],[Előrejelzés \nvége]] = \"Novemberi\",ÉrdeklődőkAdatai[Súlyozott \nelőrejelzés],0),\"\"),\"\")","v":{"v":0,"d":"0 Ft"}},{"$f":"IFERROR(IF(ÉrdeklődőkAdatai[[#This Row],[Előrejelzés \nvége]] <>\"\",IF(ÉrdeklődőkAdatai[[#This Row],[Előrejelzés \nvége]] = \"Decemberi\",ÉrdeklődőkAdatai[Súlyozott \nelőrejelzés],0),\"\"),\"\")","v":{"v":0,"d":"0 Ft"}}]
[null,{"$f":"IFERROR(IF(AND(ÉrdeklődőkAdatai[[#This Row],[Érdeklődő neve]] <> \"\", ROW(ElőrejelzettÉrtékesítés[Érdeklődő neve])<>UtolsóBejegyzés),ÉrdeklődőkAdatai[Érdeklődő neve], \"\"),\"\")","v":"Adventure Works"},{"$f":"IFERROR(IF(ÉrdeklődőkAdatai[[#This Row],[Előrejelzés \nvége]] <>\"\",IF(ÉrdeklődőkAdatai[[#This Row],[Előrejelzés \nvége]]= \"Január\",ÉrdeklődőkAdatai[Súlyozott \nelőrejelzés],0),\"\"),\"\")","v":{"v":0,"d":"0 Ft"}},{"$f":"IFERROR(IF(ÉrdeklődőkAdatai[[#This Row],[Előrejelzés \nvége]] <>\"\",IF(ÉrdeklődőkAdatai[[#This Row],[Előrejelzés \nvége]] = \"Február\",ÉrdeklődőkAdatai[Súlyozott \nelőrejelzés],0),\"\"),\"\")","v":{"v":20000,"d":"20,000 Ft"}},{"$f":"IFERROR(IF(ÉrdeklődőkAdatai[[#This Row],[Előrejelzés \nvége]] <>\"\",IF(ÉrdeklődőkAdatai[[#This Row],[Előrejelzés \nvége]] = \"Március\",ÉrdeklődőkAdatai[Súlyozott \nelőrejelzés],0),\"\"),\"\")","v":{"v":0,"d":"0 Ft"}},{"$f":"IFERROR(IF(ÉrdeklődőkAdatai[[#This Row],[Előrejelzés \nvége]] <>\"\",IF(ÉrdeklődőkAdatai[[#This Row],[Előrejelzés \nvége]] = \"Áprilisi\",ÉrdeklődőkAdatai[Súlyozott \nelőrejelzés],0),\"\"),\"\")","v":{"v":0,"d":"0 Ft"}},{"$f":"IFERROR(IF(ÉrdeklődőkAdatai[[#This Row],[Előrejelzés \nvége]] <>\"\",IF(ÉrdeklődőkAdatai[[#This Row],[Előrejelzés \nvége]] = \"Májusi\",ÉrdeklődőkAdatai[Súlyozott \nelőrejelzés],0),\"\"),\"\")","v":{"v":0,"d":"0 Ft"}},{"$f":"IFERROR(IF(ÉrdeklődőkAdatai[[#This Row],[Előrejelzés \nvége]] <>\"\",IF(ÉrdeklődőkAdatai[[#This Row],[Előrejelzés \nvége]] = \"Júniusi\",ÉrdeklődőkAdatai[Súlyozott \nelőrejelzés],0),\"\"),\"\")","v":{"v":0,"d":"0 Ft"}},{"$f":"IFERROR(IF(ÉrdeklődőkAdatai[[#This Row],[Előrejelzés \nvége]] <>\"\",IF(ÉrdeklődőkAdatai[[#This Row],[Előrejelzés \nvége]] = \"Júliusi\",ÉrdeklődőkAdatai[Súlyozott \nelőrejelzés],0),\"\"),\"\")","v":{"v":0,"d":"0 Ft"}},{"$f":"IFERROR(IF(ÉrdeklődőkAdatai[[#This Row],[Előrejelzés \nvége]] <>\"\",IF(ÉrdeklődőkAdatai[[#This Row],[Előrejelzés \nvége]] = \"Augusztusi\",ÉrdeklődőkAdatai[Súlyozott \nelőrejelzés],0),\"\"),\"\")","v":{"v":0,"d":"0 Ft"}},{"$f":"IFERROR(IF(ÉrdeklődőkAdatai[[#This Row],[Előrejelzés \nvége]] <>\"\",IF(ÉrdeklődőkAdatai[[#This Row],[Előrejelzés \nvége]] = \"Szeptemberi\",ÉrdeklődőkAdatai[Súlyozott \nelőrejelzés],0),\"\"),\"\")","v":{"v":0,"d":"0 Ft"}},{"$f":"IFERROR(IF(ÉrdeklődőkAdatai[[#This Row],[Előrejelzés \nvége]] <>\"\",IF(ÉrdeklődőkAdatai[[#This Row],[Előrejelzés \nvége]] = \"Októberi\",ÉrdeklődőkAdatai[Súlyozott \nelőrejelzés],0),\"\"),\"\")","v":{"v":0,"d":"0 Ft"}},{"$f":"IFERROR(IF(ÉrdeklődőkAdatai[[#This Row],[Előrejelzés \nvége]] <>\"\",IF(ÉrdeklődőkAdatai[[#This Row],[Előrejelzés \nvége]] = \"Novemberi\",ÉrdeklődőkAdatai[Súlyozott \nelőrejelzés],0),\"\"),\"\")","v":{"v":0,"d":"0 Ft"}},{"$f":"IFERROR(IF(ÉrdeklődőkAdatai[[#This Row],[Előrejelzés \nvége]] <>\"\",IF(ÉrdeklődőkAdatai[[#This Row],[Előrejelzés \nvége]] = \"Decemberi\",ÉrdeklődőkAdatai[Súlyozott \nelőrejelzés],0),\"\"),\"\")","v":{"v":0,"d":"0 Ft"}}]
[null,{"$f":"IFERROR(IF(AND(ÉrdeklődőkAdatai[[#This Row],[Érdeklődő neve]] <> \"\", ROW(ElőrejelzettÉrtékesítés[Érdeklődő neve])<>UtolsóBejegyzés),ÉrdeklődőkAdatai[Érdeklődő neve], \"\"),\"\")","v":"Alpine Ski House"},{"$f":"IFERROR(IF(ÉrdeklődőkAdatai[[#This Row],[Előrejelzés \nvége]] <>\"\",IF(ÉrdeklődőkAdatai[[#This Row],[Előrejelzés \nvége]]= \"Január\",ÉrdeklődőkAdatai[Súlyozott \nelőrejelzés],0),\"\"),\"\")","v":{"v":0,"d":"0 Ft"}},{"$f":"IFERROR(IF(ÉrdeklődőkAdatai[[#This Row],[Előrejelzés \nvége]] <>\"\",IF(ÉrdeklődőkAdatai[[#This Row],[Előrejelzés \nvége]] = \"Február\",ÉrdeklődőkAdatai[Súlyozott \nelőrejelzés],0),\"\"),\"\")","v":{"v":0,"d":"0 Ft"}},{"$f":"IFERROR(IF(ÉrdeklődőkAdatai[[#This Row],[Előrejelzés \nvége]] <>\"\",IF(ÉrdeklődőkAdatai[[#This Row],[Előrejelzés \nvége]] = \"Március\",ÉrdeklődőkAdatai[Súlyozott \nelőrejelzés],0),\"\"),\"\")","v":{"v":20000,"d":"20,000 Ft"}},{"$f":"IFERROR(IF(ÉrdeklődőkAdatai[[#This Row],[Előrejelzés \nvége]] <>\"\",IF(ÉrdeklődőkAdatai[[#This Row],[Előrejelzés \nvége]] = \"Áprilisi\",ÉrdeklődőkAdatai[Súlyozott \nelőrejelzés],0),\"\"),\"\")","v":{"v":0,"d":"0 Ft"}},{"$f":"IFERROR(IF(ÉrdeklődőkAdatai[[#This Row],[Előrejelzés \nvége]] <>\"\",IF(ÉrdeklődőkAdatai[[#This Row],[Előrejelzés \nvége]] = \"Májusi\",ÉrdeklődőkAdatai[Súlyozott \nelőrejelzés],0),\"\"),\"\")","v":{"v":0,"d":"0 Ft"}},{"$f":"IFERROR(IF(ÉrdeklődőkAdatai[[#This Row],[Előrejelzés \nvége]] <>\"\",IF(ÉrdeklődőkAdatai[[#This Row],[Előrejelzés \nvége]] = \"Júniusi\",ÉrdeklődőkAdatai[Súlyozott \nelőrejelzés],0),\"\"),\"\")","v":{"v":0,"d":"0 Ft"}},{"$f":"IFERROR(IF(ÉrdeklődőkAdatai[[#This Row],[Előrejelzés \nvége]] <>\"\",IF(ÉrdeklődőkAdatai[[#This Row],[Előrejelzés \nvége]] = \"Júliusi\",ÉrdeklődőkAdatai[Súlyozott \nelőrejelzés],0),\"\"),\"\")","v":{"v":0,"d":"0 Ft"}},{"$f":"IFERROR(IF(ÉrdeklődőkAdatai[[#This Row],[Előrejelzés \nvége]] <>\"\",IF(ÉrdeklődőkAdatai[[#This Row],[Előrejelzés \nvége]] = \"Augusztusi\",ÉrdeklődőkAdatai[Súlyozott \nelőrejelzés],0),\"\"),\"\")","v":{"v":0,"d":"0 Ft"}},{"$f":"IFERROR(IF(ÉrdeklődőkAdatai[[#This Row],[Előrejelzés \nvége]] <>\"\",IF(ÉrdeklődőkAdatai[[#This Row],[Előrejelzés \nvége]] = \"Szeptemberi\",ÉrdeklődőkAdatai[Súlyozott \nelőrejelzés],0),\"\"),\"\")","v":{"v":0,"d":"0 Ft"}},{"$f":"IFERROR(IF(ÉrdeklődőkAdatai[[#This Row],[Előrejelzés \nvége]] <>\"\",IF(ÉrdeklődőkAdatai[[#This Row],[Előrejelzés \nvége]] = \"Októberi\",ÉrdeklődőkAdatai[Súlyozott \nelőrejelzés],0),\"\"),\"\")","v":{"v":0,"d":"0 Ft"}},{"$f":"IFERROR(IF(ÉrdeklődőkAdatai[[#This Row],[Előrejelzés \nvége]] <>\"\",IF(ÉrdeklődőkAdatai[[#This Row],[Előrejelzés \nvége]] = \"Novemberi\",ÉrdeklődőkAdatai[Súlyozott \nelőrejelzés],0),\"\"),\"\")","v":{"v":0,"d":"0 Ft"}},{"$f":"IFERROR(IF(ÉrdeklődőkAdatai[[#This Row],[Előrejelzés \nvége]] <>\"\",IF(ÉrdeklődőkAdatai[[#This Row],[Előrejelzés \nvége]] = \"Decemberi\",ÉrdeklődőkAdatai[Súlyozott \nelőrejelzés],0),\"\"),\"\")","v":{"v":0,"d":"0 Ft"}}]
[null,{"$f":"IFERROR(IF(AND(ÉrdeklődőkAdatai[[#This Row],[Érdeklődő neve]] <> \"\", ROW(ElőrejelzettÉrtékesítés[Érdeklődő neve])<>UtolsóBejegyzés),ÉrdeklődőkAdatai[Érdeklődő neve], \"\"),\"\")","v":""},{"$f":"IFERROR(IF(ÉrdeklődőkAdatai[[#This Row],[Előrejelzés \nvége]] <>\"\",IF(ÉrdeklődőkAdatai[[#This Row],[Előrejelzés \nvége]]= \"Január\",ÉrdeklődőkAdatai[Súlyozott \nelőrejelzés],0),\"\"),\"\")","v":""},{"$f":"IFERROR(IF(ÉrdeklődőkAdatai[[#This Row],[Előrejelzés \nvége]] <>\"\",IF(ÉrdeklődőkAdatai[[#This Row],[Előrejelzés \nvége]] = \"Február\",ÉrdeklődőkAdatai[Súlyozott \nelőrejelzés],0),\"\"),\"\")","v":""},{"$f":"IFERROR(IF(ÉrdeklődőkAdatai[[#This Row],[Előrejelzés \nvége]] <>\"\",IF(ÉrdeklődőkAdatai[[#This Row],[Előrejelzés \nvége]] = \"Március\",ÉrdeklődőkAdatai[Súlyozott \nelőrejelzés],0),\"\"),\"\")","v":""},{"$f":"IFERROR(IF(ÉrdeklődőkAdatai[[#This Row],[Előrejelzés \nvége]] <>\"\",IF(ÉrdeklődőkAdatai[[#This Row],[Előrejelzés \nvége]] = \"Áprilisi\",ÉrdeklődőkAdatai[Súlyozott \nelőrejelzés],0),\"\"),\"\")","v":""},{"$f":"IFERROR(IF(ÉrdeklődőkAdatai[[#This Row],[Előrejelzés \nvége]] <>\"\",IF(ÉrdeklődőkAdatai[[#This Row],[Előrejelzés \nvége]] = \"Májusi\",ÉrdeklődőkAdatai[Súlyozott \nelőrejelzés],0),\"\"),\"\")","v":""},{"$f":"IFERROR(IF(ÉrdeklődőkAdatai[[#This Row],[Előrejelzés \nvége]] <>\"\",IF(ÉrdeklődőkAdatai[[#This Row],[Előrejelzés \nvége]] = \"Júniusi\",ÉrdeklődőkAdatai[Súlyozott \nelőrejelzés],0),\"\"),\"\")","v":""},{"$f":"IFERROR(IF(ÉrdeklődőkAdatai[[#This Row],[Előrejelzés \nvége]] <>\"\",IF(ÉrdeklődőkAdatai[[#This Row],[Előrejelzés \nvége]] = \"Júliusi\",ÉrdeklődőkAdatai[Súlyozott \nelőrejelzés],0),\"\"),\"\")","v":""},{"$f":"IFERROR(IF(ÉrdeklődőkAdatai[[#This Row],[Előrejelzés \nvége]] <>\"\",IF(ÉrdeklődőkAdatai[[#This Row],[Előrejelzés \nvége]] = \"Augusztusi\",ÉrdeklődőkAdatai[Súlyozott \nelőrejelzés],0),\"\"),\"\")","v":""},{"$f":"IFERROR(IF(ÉrdeklődőkAdatai[[#This Row],[Előrejelzés \nvége]] <>\"\",IF(ÉrdeklődőkAdatai[[#This Row],[Előrejelzés \nvége]] = \"Szeptemberi\",ÉrdeklődőkAdatai[Súlyozott \nelőrejelzés],0),\"\"),\"\")","v":""},{"$f":"IFERROR(IF(ÉrdeklődőkAdatai[[#This Row],[Előrejelzés \nvége]] <>\"\",IF(ÉrdeklődőkAdatai[[#This Row],[Előrejelzés \nvége]] = \"Októberi\",ÉrdeklődőkAdatai[Súlyozott \nelőrejelzés],0),\"\"),\"\")","v":""},{"$f":"IFERROR(IF(ÉrdeklődőkAdatai[[#This Row],[Előrejelzés \nvége]] <>\"\",IF(ÉrdeklődőkAdatai[[#This Row],[Előrejelzés \nvége]] = \"Novemberi\",ÉrdeklődőkAdatai[Súlyozott \nelőrejelzés],0),\"\"),\"\")","v":""},{"$f":"IFERROR(IF(ÉrdeklődőkAdatai[[#This Row],[Előrejelzés \nvége]] <>\"\",IF(ÉrdeklődőkAdatai[[#This Row],[Előrejelzés \nvége]] = \"Decemberi\",ÉrdeklődőkAdatai[Súlyozott \nelőrejelzés],0),\"\"),\"\")","v":""}]
[null,{"$f":"IFERROR(IF(AND(ÉrdeklődőkAdatai[[#This Row],[Érdeklődő neve]] <> \"\", ROW(ElőrejelzettÉrtékesítés[Érdeklődő neve])<>UtolsóBejegyzés),ÉrdeklődőkAdatai[Érdeklődő neve], \"\"),\"\")","v":""},{"$f":"IFERROR(IF(ÉrdeklődőkAdatai[[#This Row],[Előrejelzés \nvége]] <>\"\",IF(ÉrdeklődőkAdatai[[#This Row],[Előrejelzés \nvége]]= \"Január\",ÉrdeklődőkAdatai[Súlyozott \nelőrejelzés],0),\"\"),\"\")","v":""},{"$f":"IFERROR(IF(ÉrdeklődőkAdatai[[#This Row],[Előrejelzés \nvége]] <>\"\",IF(ÉrdeklődőkAdatai[[#This Row],[Előrejelzés \nvége]] = \"Február\",ÉrdeklődőkAdatai[Súlyozott \nelőrejelzés],0),\"\"),\"\")","v":""},{"$f":"IFERROR(IF(ÉrdeklődőkAdatai[[#This Row],[Előrejelzés \nvége]] <>\"\",IF(ÉrdeklődőkAdatai[[#This Row],[Előrejelzés \nvége]] = \"Március\",ÉrdeklődőkAdatai[Súlyozott \nelőrejelzés],0),\"\"),\"\")","v":""},{"$f":"IFERROR(IF(ÉrdeklődőkAdatai[[#This Row],[Előrejelzés \nvége]] <>\"\",IF(ÉrdeklődőkAdatai[[#This Row],[Előrejelzés \nvége]] = \"Áprilisi\",ÉrdeklődőkAdatai[Súlyozott \nelőrejelzés],0),\"\"),\"\")","v":""},{"$f":"IFERROR(IF(ÉrdeklődőkAdatai[[#This Row],[Előrejelzés \nvége]] <>\"\",IF(ÉrdeklődőkAdatai[[#This Row],[Előrejelzés \nvége]] = \"Májusi\",ÉrdeklődőkAdatai[Súlyozott \nelőrejelzés],0),\"\"),\"\")","v":""},{"$f":"IFERROR(IF(ÉrdeklődőkAdatai[[#This Row],[Előrejelzés \nvége]] <>\"\",IF(ÉrdeklődőkAdatai[[#This Row],[Előrejelzés \nvége]] = \"Júniusi\",ÉrdeklődőkAdatai[Súlyozott \nelőrejelzés],0),\"\"),\"\")","v":""},{"$f":"IFERROR(IF(ÉrdeklődőkAdatai[[#This Row],[Előrejelzés \nvége]] <>\"\",IF(ÉrdeklődőkAdatai[[#This Row],[Előrejelzés \nvége]] = \"Júliusi\",ÉrdeklődőkAdatai[Súlyozott \nelőrejelzés],0),\"\"),\"\")","v":""},{"$f":"IFERROR(IF(ÉrdeklődőkAdatai[[#This Row],[Előrejelzés \nvége]] <>\"\",IF(ÉrdeklődőkAdatai[[#This Row],[Előrejelzés \nvége]] = \"Augusztusi\",ÉrdeklődőkAdatai[Súlyozott \nelőrejelzés],0),\"\"),\"\")","v":""},{"$f":"IFERROR(IF(ÉrdeklődőkAdatai[[#This Row],[Előrejelzés \nvége]] <>\"\",IF(ÉrdeklődőkAdatai[[#This Row],[Előrejelzés \nvége]] = \"Szeptemberi\",ÉrdeklődőkAdatai[Súlyozott \nelőrejelzés],0),\"\"),\"\")","v":""},{"$f":"IFERROR(IF(ÉrdeklődőkAdatai[[#This Row],[Előrejelzés \nvége]] <>\"\",IF(ÉrdeklődőkAdatai[[#This Row],[Előrejelzés \nvége]] = \"Októberi\",ÉrdeklődőkAdatai[Súlyozott \nelőrejelzés],0),\"\"),\"\")","v":""},{"$f":"IFERROR(IF(ÉrdeklődőkAdatai[[#This Row],[Előrejelzés \nvége]] <>\"\",IF(ÉrdeklődőkAdatai[[#This Row],[Előrejelzés \nvége]] = \"Novemberi\",ÉrdeklődőkAdatai[Súlyozott \nelőrejelzés],0),\"\"),\"\")","v":""},{"$f":"IFERROR(IF(ÉrdeklődőkAdatai[[#This Row],[Előrejelzés \nvége]] <>\"\",IF(ÉrdeklődőkAdatai[[#This Row],[Előrejelzés \nvége]] = \"Decemberi\",ÉrdeklődőkAdatai[Súlyozott \nelőrejelzés],0),\"\"),\"\")","v":""}]
[null,{"$f":"IFERROR(IF(AND(ÉrdeklődőkAdatai[[#This Row],[Érdeklődő neve]] <> \"\", ROW(ElőrejelzettÉrtékesítés[Érdeklődő neve])<>UtolsóBejegyzés),ÉrdeklődőkAdatai[Érdeklődő neve], \"\"),\"\")","v":""},{"$f":"IFERROR(IF(ÉrdeklődőkAdatai[[#This Row],[Előrejelzés \nvége]] <>\"\",IF(ÉrdeklődőkAdatai[[#This Row],[Előrejelzés \nvége]]= \"Január\",ÉrdeklődőkAdatai[Súlyozott \nelőrejelzés],0),\"\"),\"\")","v":""},{"$f":"IFERROR(IF(ÉrdeklődőkAdatai[[#This Row],[Előrejelzés \nvége]] <>\"\",IF(ÉrdeklődőkAdatai[[#This Row],[Előrejelzés \nvége]] = \"Február\",ÉrdeklődőkAdatai[Súlyozott \nelőrejelzés],0),\"\"),\"\")","v":""},{"$f":"IFERROR(IF(ÉrdeklődőkAdatai[[#This Row],[Előrejelzés \nvége]] <>\"\",IF(ÉrdeklődőkAdatai[[#This Row],[Előrejelzés \nvége]] = \"Március\",ÉrdeklődőkAdatai[Súlyozott \nelőrejelzés],0),\"\"),\"\")","v":""},{"$f":"IFERROR(IF(ÉrdeklődőkAdatai[[#This Row],[Előrejelzés \nvége]] <>\"\",IF(ÉrdeklődőkAdatai[[#This Row],[Előrejelzés \nvége]] = \"Áprilisi\",ÉrdeklődőkAdatai[Súlyozott \nelőrejelzés],0),\"\"),\"\")","v":""},{"$f":"IFERROR(IF(ÉrdeklődőkAdatai[[#This Row],[Előrejelzés \nvége]] <>\"\",IF(ÉrdeklődőkAdatai[[#This Row],[Előrejelzés \nvége]] = \"Májusi\",ÉrdeklődőkAdatai[Súlyozott \nelőrejelzés],0),\"\"),\"\")","v":""},{"$f":"IFERROR(IF(ÉrdeklődőkAdatai[[#This Row],[Előrejelzés \nvége]] <>\"\",IF(ÉrdeklődőkAdatai[[#This Row],[Előrejelzés \nvége]] = \"Júniusi\",ÉrdeklődőkAdatai[Súlyozott \nelőrejelzés],0),\"\"),\"\")","v":""},{"$f":"IFERROR(IF(ÉrdeklődőkAdatai[[#This Row],[Előrejelzés \nvége]] <>\"\",IF(ÉrdeklődőkAdatai[[#This Row],[Előrejelzés \nvége]] = \"Júliusi\",ÉrdeklődőkAdatai[Súlyozott \nelőrejelzés],0),\"\"),\"\")","v":""},{"$f":"IFERROR(IF(ÉrdeklődőkAdatai[[#This Row],[Előrejelzés \nvége]] <>\"\",IF(ÉrdeklődőkAdatai[[#This Row],[Előrejelzés \nvége]] = \"Augusztusi\",ÉrdeklődőkAdatai[Súlyozott \nelőrejelzés],0),\"\"),\"\")","v":""},{"$f":"IFERROR(IF(ÉrdeklődőkAdatai[[#This Row],[Előrejelzés \nvége]] <>\"\",IF(ÉrdeklődőkAdatai[[#This Row],[Előrejelzés \nvége]] = \"Szeptemberi\",ÉrdeklődőkAdatai[Súlyozott \nelőrejelzés],0),\"\"),\"\")","v":""},{"$f":"IFERROR(IF(ÉrdeklődőkAdatai[[#This Row],[Előrejelzés \nvége]] <>\"\",IF(ÉrdeklődőkAdatai[[#This Row],[Előrejelzés \nvége]] = \"Októberi\",ÉrdeklődőkAdatai[Súlyozott \nelőrejelzés],0),\"\"),\"\")","v":""},{"$f":"IFERROR(IF(ÉrdeklődőkAdatai[[#This Row],[Előrejelzés \nvége]] <>\"\",IF(ÉrdeklődőkAdatai[[#This Row],[Előrejelzés \nvége]] = \"Novemberi\",ÉrdeklődőkAdatai[Súlyozott \nelőrejelzés],0),\"\"),\"\")","v":""},{"$f":"IFERROR(IF(ÉrdeklődőkAdatai[[#This Row],[Előrejelzés \nvége]] <>\"\",IF(ÉrdeklődőkAdatai[[#This Row],[Előrejelzés \nvége]] = \"Decemberi\",ÉrdeklődőkAdatai[Súlyozott \nelőrejelzés],0),\"\"),\"\")","v":""}]
[null,{"$f":"IFERROR(IF(AND(ÉrdeklődőkAdatai[[#This Row],[Érdeklődő neve]] <> \"\", ROW(ElőrejelzettÉrtékesítés[Érdeklődő neve])<>UtolsóBejegyzés),ÉrdeklődőkAdatai[Érdeklődő neve], \"\"),\"\")","v":""},{"$f":"IFERROR(IF(ÉrdeklődőkAdatai[[#This Row],[Előrejelzés \nvége]] <>\"\",IF(ÉrdeklődőkAdatai[[#This Row],[Előrejelzés \nvége]]= \"Január\",ÉrdeklődőkAdatai[Súlyozott \nelőrejelzés],0),\"\"),\"\")","v":""},{"$f":"IFERROR(IF(ÉrdeklődőkAdatai[[#This Row],[Előrejelzés \nvége]] <>\"\",IF(ÉrdeklődőkAdatai[[#This Row],[Előrejelzés \nvége]] = \"Február\",ÉrdeklődőkAdatai[Súlyozott \nelőrejelzés],0),\"\"),\"\")","v":""},{"$f":"IFERROR(IF(ÉrdeklődőkAdatai[[#This Row],[Előrejelzés \nvége]] <>\"\",IF(ÉrdeklődőkAdatai[[#This Row],[Előrejelzés \nvége]] = \"Március\",ÉrdeklődőkAdatai[Súlyozott \nelőrejelzés],0),\"\"),\"\")","v":""},{"$f":"IFERROR(IF(ÉrdeklődőkAdatai[[#This Row],[Előrejelzés \nvége]] <>\"\",IF(ÉrdeklődőkAdatai[[#This Row],[Előrejelzés \nvége]] = \"Áprilisi\",ÉrdeklődőkAdatai[Súlyozott \nelőrejelzés],0),\"\"),\"\")","v":""},{"$f":"IFERROR(IF(ÉrdeklődőkAdatai[[#This Row],[Előrejelzés \nvége]] <>\"\",IF(ÉrdeklődőkAdatai[[#This Row],[Előrejelzés \nvége]] = \"Májusi\",ÉrdeklődőkAdatai[Súlyozott \nelőrejelzés],0),\"\"),\"\")","v":""},{"$f":"IFERROR(IF(ÉrdeklődőkAdatai[[#This Row],[Előrejelzés \nvége]] <>\"\",IF(ÉrdeklődőkAdatai[[#This Row],[Előrejelzés \nvége]] = \"Júniusi\",ÉrdeklődőkAdatai[Súlyozott \nelőrejelzés],0),\"\"),\"\")","v":""},{"$f":"IFERROR(IF(ÉrdeklődőkAdatai[[#This Row],[Előrejelzés \nvége]] <>\"\",IF(ÉrdeklődőkAdatai[[#This Row],[Előrejelzés \nvége]] = \"Júliusi\",ÉrdeklődőkAdatai[Súlyozott \nelőrejelzés],0),\"\"),\"\")","v":""},{"$f":"IFERROR(IF(ÉrdeklődőkAdatai[[#This Row],[Előrejelzés \nvége]] <>\"\",IF(ÉrdeklődőkAdatai[[#This Row],[Előrejelzés \nvége]] = \"Augusztusi\",ÉrdeklődőkAdatai[Súlyozott \nelőrejelzés],0),\"\"),\"\")","v":""},{"$f":"IFERROR(IF(ÉrdeklődőkAdatai[[#This Row],[Előrejelzés \nvége]] <>\"\",IF(ÉrdeklődőkAdatai[[#This Row],[Előrejelzés \nvége]] = \"Szeptemberi\",ÉrdeklődőkAdatai[Súlyozott \nelőrejelzés],0),\"\"),\"\")","v":""},{"$f":"IFERROR(IF(ÉrdeklődőkAdatai[[#This Row],[Előrejelzés \nvége]] <>\"\",IF(ÉrdeklődőkAdatai[[#This Row],[Előrejelzés \nvége]] = \"Októberi\",ÉrdeklődőkAdatai[Súlyozott \nelőrejelzés],0),\"\"),\"\")","v":""},{"$f":"IFERROR(IF(ÉrdeklődőkAdatai[[#This Row],[Előrejelzés \nvége]] <>\"\",IF(ÉrdeklődőkAdatai[[#This Row],[Előrejelzés \nvége]] = \"Novemberi\",ÉrdeklődőkAdatai[Súlyozott \nelőrejelzés],0),\"\"),\"\")","v":""},{"$f":"IFERROR(IF(ÉrdeklődőkAdatai[[#This Row],[Előrejelzés \nvége]] <>\"\",IF(ÉrdeklődőkAdatai[[#This Row],[Előrejelzés \nvége]] = \"Decemberi\",ÉrdeklődőkAdatai[Súlyozott \nelőrejelzés],0),\"\"),\"\")","v":""}]
[null,{"$f":"IFERROR(IF(AND(ÉrdeklődőkAdatai[[#This Row],[Érdeklődő neve]] <> \"\", ROW(ElőrejelzettÉrtékesítés[Érdeklődő neve])<>UtolsóBejegyzés),ÉrdeklődőkAdatai[Érdeklődő neve], \"\"),\"\")","v":""},{"$f":"IFERROR(IF(ÉrdeklődőkAdatai[[#This Row],[Előrejelzés \nvége]] <>\"\",IF(ÉrdeklődőkAdatai[[#This Row],[Előrejelzés \nvége]]= \"Január\",ÉrdeklődőkAdatai[Súlyozott \nelőrejelzés],0),\"\"),\"\")","v":""},{"$f":"IFERROR(IF(ÉrdeklődőkAdatai[[#This Row],[Előrejelzés \nvége]] <>\"\",IF(ÉrdeklődőkAdatai[[#This Row],[Előrejelzés \nvége]] = \"Február\",ÉrdeklődőkAdatai[Súlyozott \nelőrejelzés],0),\"\"),\"\")","v":""},{"$f":"IFERROR(IF(ÉrdeklődőkAdatai[[#This Row],[Előrejelzés \nvége]] <>\"\",IF(ÉrdeklődőkAdatai[[#This Row],[Előrejelzés \nvége]] = \"Március\",ÉrdeklődőkAdatai[Súlyozott \nelőrejelzés],0),\"\"),\"\")","v":""},{"$f":"IFERROR(IF(ÉrdeklődőkAdatai[[#This Row],[Előrejelzés \nvége]] <>\"\",IF(ÉrdeklődőkAdatai[[#This Row],[Előrejelzés \nvége]] = \"Áprilisi\",ÉrdeklődőkAdatai[Súlyozott \nelőrejelzés],0),\"\"),\"\")","v":""},{"$f":"IFERROR(IF(ÉrdeklődőkAdatai[[#This Row],[Előrejelzés \nvége]] <>\"\",IF(ÉrdeklődőkAdatai[[#This Row],[Előrejelzés \nvége]] = \"Májusi\",ÉrdeklődőkAdatai[Súlyozott \nelőrejelzés],0),\"\"),\"\")","v":""},{"$f":"IFERROR(IF(ÉrdeklődőkAdatai[[#This Row],[Előrejelzés \nvége]] <>\"\",IF(ÉrdeklődőkAdatai[[#This Row],[Előrejelzés \nvége]] = \"Júniusi\",ÉrdeklődőkAdatai[Súlyozott \nelőrejelzés],0),\"\"),\"\")","v":""},{"$f":"IFERROR(IF(ÉrdeklődőkAdatai[[#This Row],[Előrejelzés \nvége]] <>\"\",IF(ÉrdeklődőkAdatai[[#This Row],[Előrejelzés \nvége]] = \"Júliusi\",ÉrdeklődőkAdatai[Súlyozott \nelőrejelzés],0),\"\"),\"\")","v":""},{"$f":"IFERROR(IF(ÉrdeklődőkAdatai[[#This Row],[Előrejelzés \nvége]] <>\"\",IF(ÉrdeklődőkAdatai[[#This Row],[Előrejelzés \nvége]] = \"Augusztusi\",ÉrdeklődőkAdatai[Súlyozott \nelőrejelzés],0),\"\"),\"\")","v":""},{"$f":"IFERROR(IF(ÉrdeklődőkAdatai[[#This Row],[Előrejelzés \nvége]] <>\"\",IF(ÉrdeklődőkAdatai[[#This Row],[Előrejelzés \nvége]] = \"Szeptemberi\",ÉrdeklődőkAdatai[Súlyozott \nelőrejelzés],0),\"\"),\"\")","v":""},{"$f":"IFERROR(IF(ÉrdeklődőkAdatai[[#This Row],[Előrejelzés \nvége]] <>\"\",IF(ÉrdeklődőkAdatai[[#This Row],[Előrejelzés \nvége]] = \"Októberi\",ÉrdeklődőkAdatai[Súlyozott \nelőrejelzés],0),\"\"),\"\")","v":""},{"$f":"IFERROR(IF(ÉrdeklődőkAdatai[[#This Row],[Előrejelzés \nvége]] <>\"\",IF(ÉrdeklődőkAdatai[[#This Row],[Előrejelzés \nvége]] = \"Novemberi\",ÉrdeklődőkAdatai[Súlyozott \nelőrejelzés],0),\"\"),\"\")","v":""},{"$f":"IFERROR(IF(ÉrdeklődőkAdatai[[#This Row],[Előrejelzés \nvége]] <>\"\",IF(ÉrdeklődőkAdatai[[#This Row],[Előrejelzés \nvége]] = \"Decemberi\",ÉrdeklődőkAdatai[Súlyozott \nelőrejelzés],0),\"\"),\"\")","v":""}]
[null,{"$f":"IFERROR(IF(AND(ÉrdeklődőkAdatai[[#This Row],[Érdeklődő neve]] <> \"\", ROW(ElőrejelzettÉrtékesítés[Érdeklődő neve])<>UtolsóBejegyzés),ÉrdeklődőkAdatai[Érdeklődő neve], \"\"),\"\")","v":""},{"$f":"IFERROR(IF(ÉrdeklődőkAdatai[[#This Row],[Előrejelzés \nvége]] <>\"\",IF(ÉrdeklődőkAdatai[[#This Row],[Előrejelzés \nvége]]= \"Január\",ÉrdeklődőkAdatai[Súlyozott \nelőrejelzés],0),\"\"),\"\")","v":""},{"$f":"IFERROR(IF(ÉrdeklődőkAdatai[[#This Row],[Előrejelzés \nvége]] <>\"\",IF(ÉrdeklődőkAdatai[[#This Row],[Előrejelzés \nvége]] = \"Február\",ÉrdeklődőkAdatai[Súlyozott \nelőrejelzés],0),\"\"),\"\")","v":""},{"$f":"IFERROR(IF(ÉrdeklődőkAdatai[[#This Row],[Előrejelzés \nvége]] <>\"\",IF(ÉrdeklődőkAdatai[[#This Row],[Előrejelzés \nvége]] = \"Március\",ÉrdeklődőkAdatai[Súlyozott \nelőrejelzés],0),\"\"),\"\")","v":""},{"$f":"IFERROR(IF(ÉrdeklődőkAdatai[[#This Row],[Előrejelzés \nvége]] <>\"\",IF(ÉrdeklődőkAdatai[[#This Row],[Előrejelzés \nvége]] = \"Áprilisi\",ÉrdeklődőkAdatai[Súlyozott \nelőrejelzés],0),\"\"),\"\")","v":""},{"$f":"IFERROR(IF(ÉrdeklődőkAdatai[[#This Row],[Előrejelzés \nvége]] <>\"\",IF(ÉrdeklődőkAdatai[[#This Row],[Előrejelzés \nvége]] = \"Májusi\",ÉrdeklődőkAdatai[Súlyozott \nelőrejelzés],0),\"\"),\"\")","v":""},{"$f":"IFERROR(IF(ÉrdeklődőkAdatai[[#This Row],[Előrejelzés \nvége]] <>\"\",IF(ÉrdeklődőkAdatai[[#This Row],[Előrejelzés \nvége]] = \"Júniusi\",ÉrdeklődőkAdatai[Súlyozott \nelőrejelzés],0),\"\"),\"\")","v":""},{"$f":"IFERROR(IF(ÉrdeklődőkAdatai[[#This Row],[Előrejelzés \nvége]] <>\"\",IF(ÉrdeklődőkAdatai[[#This Row],[Előrejelzés \nvége]] = \"Júliusi\",ÉrdeklődőkAdatai[Súlyozott \nelőrejelzés],0),\"\"),\"\")","v":""},{"$f":"IFERROR(IF(ÉrdeklődőkAdatai[[#This Row],[Előrejelzés \nvége]] <>\"\",IF(ÉrdeklődőkAdatai[[#This Row],[Előrejelzés \nvége]] = \"Augusztusi\",ÉrdeklődőkAdatai[Súlyozott \nelőrejelzés],0),\"\"),\"\")","v":""},{"$f":"IFERROR(IF(ÉrdeklődőkAdatai[[#This Row],[Előrejelzés \nvége]] <>\"\",IF(ÉrdeklődőkAdatai[[#This Row],[Előrejelzés \nvége]] = \"Szeptemberi\",ÉrdeklődőkAdatai[Súlyozott \nelőrejelzés],0),\"\"),\"\")","v":""},{"$f":"IFERROR(IF(ÉrdeklődőkAdatai[[#This Row],[Előrejelzés \nvége]] <>\"\",IF(ÉrdeklődőkAdatai[[#This Row],[Előrejelzés \nvége]] = \"Októberi\",ÉrdeklődőkAdatai[Súlyozott \nelőrejelzés],0),\"\"),\"\")","v":""},{"$f":"IFERROR(IF(ÉrdeklődőkAdatai[[#This Row],[Előrejelzés \nvége]] <>\"\",IF(ÉrdeklődőkAdatai[[#This Row],[Előrejelzés \nvége]] = \"Novemberi\",ÉrdeklődőkAdatai[Súlyozott \nelőrejelzés],0),\"\"),\"\")","v":""},{"$f":"IFERROR(IF(ÉrdeklődőkAdatai[[#This Row],[Előrejelzés \nvége]] <>\"\",IF(ÉrdeklődőkAdatai[[#This Row],[Előrejelzés \nvége]] = \"Decemberi\",ÉrdeklődőkAdatai[Súlyozott \nelőrejelzés],0),\"\"),\"\")","v":""}]
[null,{"$f":"IFERROR(IF(AND(ÉrdeklődőkAdatai[[#This Row],[Érdeklődő neve]] <> \"\", ROW(ElőrejelzettÉrtékesítés[Érdeklődő neve])<>UtolsóBejegyzés),ÉrdeklődőkAdatai[Érdeklődő neve], \"\"),\"\")","v":""},{"$f":"IFERROR(IF(ÉrdeklődőkAdatai[[#This Row],[Előrejelzés \nvége]] <>\"\",IF(ÉrdeklődőkAdatai[[#This Row],[Előrejelzés \nvége]]= \"Január\",ÉrdeklődőkAdatai[Súlyozott \nelőrejelzés],0),\"\"),\"\")","v":""},{"$f":"IFERROR(IF(ÉrdeklődőkAdatai[[#This Row],[Előrejelzés \nvége]] <>\"\",IF(ÉrdeklődőkAdatai[[#This Row],[Előrejelzés \nvége]] = \"Február\",ÉrdeklődőkAdatai[Súlyozott \nelőrejelzés],0),\"\"),\"\")","v":""},{"$f":"IFERROR(IF(ÉrdeklődőkAdatai[[#This Row],[Előrejelzés \nvége]] <>\"\",IF(ÉrdeklődőkAdatai[[#This Row],[Előrejelzés \nvége]] = \"Március\",ÉrdeklődőkAdatai[Súlyozott \nelőrejelzés],0),\"\"),\"\")","v":""},{"$f":"IFERROR(IF(ÉrdeklődőkAdatai[[#This Row],[Előrejelzés \nvége]] <>\"\",IF(ÉrdeklődőkAdatai[[#This Row],[Előrejelzés \nvége]] = \"Áprilisi\",ÉrdeklődőkAdatai[Súlyozott \nelőrejelzés],0),\"\"),\"\")","v":""},{"$f":"IFERROR(IF(ÉrdeklődőkAdatai[[#This Row],[Előrejelzés \nvége]] <>\"\",IF(ÉrdeklődőkAdatai[[#This Row],[Előrejelzés \nvége]] = \"Májusi\",ÉrdeklődőkAdatai[Súlyozott \nelőrejelzés],0),\"\"),\"\")","v":""},{"$f":"IFERROR(IF(ÉrdeklődőkAdatai[[#This Row],[Előrejelzés \nvége]] <>\"\",IF(ÉrdeklődőkAdatai[[#This Row],[Előrejelzés \nvége]] = \"Júniusi\",ÉrdeklődőkAdatai[Súlyozott \nelőrejelzés],0),\"\"),\"\")","v":""},{"$f":"IFERROR(IF(ÉrdeklődőkAdatai[[#This Row],[Előrejelzés \nvége]] <>\"\",IF(ÉrdeklődőkAdatai[[#This Row],[Előrejelzés \nvége]] = \"Júliusi\",ÉrdeklődőkAdatai[Súlyozott \nelőrejelzés],0),\"\"),\"\")","v":""},{"$f":"IFERROR(IF(ÉrdeklődőkAdatai[[#This Row],[Előrejelzés \nvége]] <>\"\",IF(ÉrdeklődőkAdatai[[#This Row],[Előrejelzés \nvége]] = \"Augusztusi\",ÉrdeklődőkAdatai[Súlyozott \nelőrejelzés],0),\"\"),\"\")","v":""},{"$f":"IFERROR(IF(ÉrdeklődőkAdatai[[#This Row],[Előrejelzés \nvége]] <>\"\",IF(ÉrdeklődőkAdatai[[#This Row],[Előrejelzés \nvége]] = \"Szeptemberi\",ÉrdeklődőkAdatai[Súlyozott \nelőrejelzés],0),\"\"),\"\")","v":""},{"$f":"IFERROR(IF(ÉrdeklődőkAdatai[[#This Row],[Előrejelzés \nvége]] <>\"\",IF(ÉrdeklődőkAdatai[[#This Row],[Előrejelzés \nvége]] = \"Októberi\",ÉrdeklődőkAdatai[Súlyozott \nelőrejelzés],0),\"\"),\"\")","v":""},{"$f":"IFERROR(IF(ÉrdeklődőkAdatai[[#This Row],[Előrejelzés \nvége]] <>\"\",IF(ÉrdeklődőkAdatai[[#This Row],[Előrejelzés \nvége]] = \"Novemberi\",ÉrdeklődőkAdatai[Súlyozott \nelőrejelzés],0),\"\"),\"\")","v":""},{"$f":"IFERROR(IF(ÉrdeklődőkAdatai[[#This Row],[Előrejelzés \nvége]] <>\"\",IF(ÉrdeklődőkAdatai[[#This Row],[Előrejelzés \nvége]] = \"Decemberi\",ÉrdeklődőkAdatai[Súlyozott \nelőrejelzés],0),\"\"),\"\")","v":""}]
[null,{"$f":"IFERROR(IF(AND(ÉrdeklődőkAdatai[[#This Row],[Érdeklődő neve]] <> \"\", ROW(ElőrejelzettÉrtékesítés[Érdeklődő neve])<>UtolsóBejegyzés),ÉrdeklődőkAdatai[Érdeklődő neve], \"\"),\"\")","v":""},{"$f":"IFERROR(IF(ÉrdeklődőkAdatai[[#This Row],[Előrejelzés \nvége]] <>\"\",IF(ÉrdeklődőkAdatai[[#This Row],[Előrejelzés \nvége]]= \"Január\",ÉrdeklődőkAdatai[Súlyozott \nelőrejelzés],0),\"\"),\"\")","v":""},{"$f":"IFERROR(IF(ÉrdeklődőkAdatai[[#This Row],[Előrejelzés \nvége]] <>\"\",IF(ÉrdeklődőkAdatai[[#This Row],[Előrejelzés \nvége]] = \"Február\",ÉrdeklődőkAdatai[Súlyozott \nelőrejelzés],0),\"\"),\"\")","v":""},{"$f":"IFERROR(IF(ÉrdeklődőkAdatai[[#This Row],[Előrejelzés \nvége]] <>\"\",IF(ÉrdeklődőkAdatai[[#This Row],[Előrejelzés \nvége]] = \"Március\",ÉrdeklődőkAdatai[Súlyozott \nelőrejelzés],0),\"\"),\"\")","v":""},{"$f":"IFERROR(IF(ÉrdeklődőkAdatai[[#This Row],[Előrejelzés \nvége]] <>\"\",IF(ÉrdeklődőkAdatai[[#This Row],[Előrejelzés \nvége]] = \"Áprilisi\",ÉrdeklődőkAdatai[Súlyozott \nelőrejelzés],0),\"\"),\"\")","v":""},{"$f":"IFERROR(IF(ÉrdeklődőkAdatai[[#This Row],[Előrejelzés \nvége]] <>\"\",IF(ÉrdeklődőkAdatai[[#This Row],[Előrejelzés \nvége]] = \"Májusi\",ÉrdeklődőkAdatai[Súlyozott \nelőrejelzés],0),\"\"),\"\")","v":""},{"$f":"IFERROR(IF(ÉrdeklődőkAdatai[[#This Row],[Előrejelzés \nvége]] <>\"\",IF(ÉrdeklődőkAdatai[[#This Row],[Előrejelzés \nvége]] = \"Júniusi\",ÉrdeklődőkAdatai[Súlyozott \nelőrejelzés],0),\"\"),\"\")","v":""},{"$f":"IFERROR(IF(ÉrdeklődőkAdatai[[#This Row],[Előrejelzés \nvége]] <>\"\",IF(ÉrdeklődőkAdatai[[#This Row],[Előrejelzés \nvége]] = \"Júliusi\",ÉrdeklődőkAdatai[Súlyozott \nelőrejelzés],0),\"\"),\"\")","v":""},{"$f":"IFERROR(IF(ÉrdeklődőkAdatai[[#This Row],[Előrejelzés \nvége]] <>\"\",IF(ÉrdeklődőkAdatai[[#This Row],[Előrejelzés \nvége]] = \"Augusztusi\",ÉrdeklődőkAdatai[Súlyozott \nelőrejelzés],0),\"\"),\"\")","v":""},{"$f":"IFERROR(IF(ÉrdeklődőkAdatai[[#This Row],[Előrejelzés \nvége]] <>\"\",IF(ÉrdeklődőkAdatai[[#This Row],[Előrejelzés \nvége]] = \"Szeptemberi\",ÉrdeklődőkAdatai[Súlyozott \nelőrejelzés],0),\"\"),\"\")","v":""},{"$f":"IFERROR(IF(ÉrdeklődőkAdatai[[#This Row],[Előrejelzés \nvége]] <>\"\",IF(ÉrdeklődőkAdatai[[#This Row],[Előrejelzés \nvége]] = \"Októberi\",ÉrdeklődőkAdatai[Súlyozott \nelőrejelzés],0),\"\"),\"\")","v":""},{"$f":"IFERROR(IF(ÉrdeklődőkAdatai[[#This Row],[Előrejelzés \nvége]] <>\"\",IF(ÉrdeklődőkAdatai[[#This Row],[Előrejelzés \nvége]] = \"Novemberi\",ÉrdeklődőkAdatai[Súlyozott \nelőrejelzés],0),\"\"),\"\")","v":""},{"$f":"IFERROR(IF(ÉrdeklődőkAdatai[[#This Row],[Előrejelzés \nvége]] <>\"\",IF(ÉrdeklődőkAdatai[[#This Row],[Előrejelzés \nvége]] = \"Decemberi\",ÉrdeklődőkAdatai[Súlyozott \nelőrejelzés],0),\"\"),\"\")","v":""}]
[null,{"$f":"IFERROR(IF(AND(ÉrdeklődőkAdatai[[#This Row],[Érdeklődő neve]] <> \"\", ROW(ElőrejelzettÉrtékesítés[Érdeklődő neve])<>UtolsóBejegyzés),ÉrdeklődőkAdatai[Érdeklődő neve], \"\"),\"\")","v":""},{"$f":"IFERROR(IF(ÉrdeklődőkAdatai[[#This Row],[Előrejelzés \nvége]] <>\"\",IF(ÉrdeklődőkAdatai[[#This Row],[Előrejelzés \nvége]]= \"Január\",ÉrdeklődőkAdatai[Súlyozott \nelőrejelzés],0),\"\"),\"\")","v":""},{"$f":"IFERROR(IF(ÉrdeklődőkAdatai[[#This Row],[Előrejelzés \nvége]] <>\"\",IF(ÉrdeklődőkAdatai[[#This Row],[Előrejelzés \nvége]] = \"Február\",ÉrdeklődőkAdatai[Súlyozott \nelőrejelzés],0),\"\"),\"\")","v":""},{"$f":"IFERROR(IF(ÉrdeklődőkAdatai[[#This Row],[Előrejelzés \nvége]] <>\"\",IF(ÉrdeklődőkAdatai[[#This Row],[Előrejelzés \nvége]] = \"Március\",ÉrdeklődőkAdatai[Súlyozott \nelőrejelzés],0),\"\"),\"\")","v":""},{"$f":"IFERROR(IF(ÉrdeklődőkAdatai[[#This Row],[Előrejelzés \nvége]] <>\"\",IF(ÉrdeklődőkAdatai[[#This Row],[Előrejelzés \nvége]] = \"Áprilisi\",ÉrdeklődőkAdatai[Súlyozott \nelőrejelzés],0),\"\"),\"\")","v":""},{"$f":"IFERROR(IF(ÉrdeklődőkAdatai[[#This Row],[Előrejelzés \nvége]] <>\"\",IF(ÉrdeklődőkAdatai[[#This Row],[Előrejelzés \nvége]] = \"Májusi\",ÉrdeklődőkAdatai[Súlyozott \nelőrejelzés],0),\"\"),\"\")","v":""},{"$f":"IFERROR(IF(ÉrdeklődőkAdatai[[#This Row],[Előrejelzés \nvége]] <>\"\",IF(ÉrdeklődőkAdatai[[#This Row],[Előrejelzés \nvége]] = \"Júniusi\",ÉrdeklődőkAdatai[Súlyozott \nelőrejelzés],0),\"\"),\"\")","v":""},{"$f":"IFERROR(IF(ÉrdeklődőkAdatai[[#This Row],[Előrejelzés \nvége]] <>\"\",IF(ÉrdeklődőkAdatai[[#This Row],[Előrejelzés \nvége]] = \"Júliusi\",ÉrdeklődőkAdatai[Súlyozott \nelőrejelzés],0),\"\"),\"\")","v":""},{"$f":"IFERROR(IF(ÉrdeklődőkAdatai[[#This Row],[Előrejelzés \nvége]] <>\"\",IF(ÉrdeklődőkAdatai[[#This Row],[Előrejelzés \nvége]] = \"Augusztusi\",ÉrdeklődőkAdatai[Súlyozott \nelőrejelzés],0),\"\"),\"\")","v":""},{"$f":"IFERROR(IF(ÉrdeklődőkAdatai[[#This Row],[Előrejelzés \nvége]] <>\"\",IF(ÉrdeklődőkAdatai[[#This Row],[Előrejelzés \nvége]] = \"Szeptemberi\",ÉrdeklődőkAdatai[Súlyozott \nelőrejelzés],0),\"\"),\"\")","v":""},{"$f":"IFERROR(IF(ÉrdeklődőkAdatai[[#This Row],[Előrejelzés \nvége]] <>\"\",IF(ÉrdeklődőkAdatai[[#This Row],[Előrejelzés \nvége]] = \"Októberi\",ÉrdeklődőkAdatai[Súlyozott \nelőrejelzés],0),\"\"),\"\")","v":""},{"$f":"IFERROR(IF(ÉrdeklődőkAdatai[[#This Row],[Előrejelzés \nvége]] <>\"\",IF(ÉrdeklődőkAdatai[[#This Row],[Előrejelzés \nvége]] = \"Novemberi\",ÉrdeklődőkAdatai[Súlyozott \nelőrejelzés],0),\"\"),\"\")","v":""},{"$f":"IFERROR(IF(ÉrdeklődőkAdatai[[#This Row],[Előrejelzés \nvége]] <>\"\",IF(ÉrdeklődőkAdatai[[#This Row],[Előrejelzés \nvége]] = \"Decemberi\",ÉrdeklődőkAdatai[Súlyozott \nelőrejelzés],0),\"\"),\"\")","v":""}]
[null,{"$f":"IFERROR(IF(AND(ÉrdeklődőkAdatai[[#This Row],[Érdeklődő neve]] <> \"\", ROW(ElőrejelzettÉrtékesítés[Érdeklődő neve])<>UtolsóBejegyzés),ÉrdeklődőkAdatai[Érdeklődő neve], \"\"),\"\")","v":""},{"$f":"IFERROR(IF(ÉrdeklődőkAdatai[[#This Row],[Előrejelzés \nvége]] <>\"\",IF(ÉrdeklődőkAdatai[[#This Row],[Előrejelzés \nvége]]= \"Január\",ÉrdeklődőkAdatai[Súlyozott \nelőrejelzés],0),\"\"),\"\")","v":""},{"$f":"IFERROR(IF(ÉrdeklődőkAdatai[[#This Row],[Előrejelzés \nvége]] <>\"\",IF(ÉrdeklődőkAdatai[[#This Row],[Előrejelzés \nvége]] = \"Február\",ÉrdeklődőkAdatai[Súlyozott \nelőrejelzés],0),\"\"),\"\")","v":""},{"$f":"IFERROR(IF(ÉrdeklődőkAdatai[[#This Row],[Előrejelzés \nvége]] <>\"\",IF(ÉrdeklődőkAdatai[[#This Row],[Előrejelzés \nvége]] = \"Március\",ÉrdeklődőkAdatai[Súlyozott \nelőrejelzés],0),\"\"),\"\")","v":""},{"$f":"IFERROR(IF(ÉrdeklődőkAdatai[[#This Row],[Előrejelzés \nvége]] <>\"\",IF(ÉrdeklődőkAdatai[[#This Row],[Előrejelzés \nvége]] = \"Áprilisi\",ÉrdeklődőkAdatai[Súlyozott \nelőrejelzés],0),\"\"),\"\")","v":""},{"$f":"IFERROR(IF(ÉrdeklődőkAdatai[[#This Row],[Előrejelzés \nvége]] <>\"\",IF(ÉrdeklődőkAdatai[[#This Row],[Előrejelzés \nvége]] = \"Májusi\",ÉrdeklődőkAdatai[Súlyozott \nelőrejelzés],0),\"\"),\"\")","v":""},{"$f":"IFERROR(IF(ÉrdeklődőkAdatai[[#This Row],[Előrejelzés \nvége]] <>\"\",IF(ÉrdeklődőkAdatai[[#This Row],[Előrejelzés \nvége]] = \"Júniusi\",ÉrdeklődőkAdatai[Súlyozott \nelőrejelzés],0),\"\"),\"\")","v":""},{"$f":"IFERROR(IF(ÉrdeklődőkAdatai[[#This Row],[Előrejelzés \nvége]] <>\"\",IF(ÉrdeklődőkAdatai[[#This Row],[Előrejelzés \nvége]] = \"Júliusi\",ÉrdeklődőkAdatai[Súlyozott \nelőrejelzés],0),\"\"),\"\")","v":""},{"$f":"IFERROR(IF(ÉrdeklődőkAdatai[[#This Row],[Előrejelzés \nvége]] <>\"\",IF(ÉrdeklődőkAdatai[[#This Row],[Előrejelzés \nvége]] = \"Augusztusi\",ÉrdeklődőkAdatai[Súlyozott \nelőrejelzés],0),\"\"),\"\")","v":""},{"$f":"IFERROR(IF(ÉrdeklődőkAdatai[[#This Row],[Előrejelzés \nvége]] <>\"\",IF(ÉrdeklődőkAdatai[[#This Row],[Előrejelzés \nvége]] = \"Szeptemberi\",ÉrdeklődőkAdatai[Súlyozott \nelőrejelzés],0),\"\"),\"\")","v":""},{"$f":"IFERROR(IF(ÉrdeklődőkAdatai[[#This Row],[Előrejelzés \nvége]] <>\"\",IF(ÉrdeklődőkAdatai[[#This Row],[Előrejelzés \nvége]] = \"Októberi\",ÉrdeklődőkAdatai[Súlyozott \nelőrejelzés],0),\"\"),\"\")","v":""},{"$f":"IFERROR(IF(ÉrdeklődőkAdatai[[#This Row],[Előrejelzés \nvége]] <>\"\",IF(ÉrdeklődőkAdatai[[#This Row],[Előrejelzés \nvége]] = \"Novemberi\",ÉrdeklődőkAdatai[Súlyozott \nelőrejelzés],0),\"\"),\"\")","v":""},{"$f":"IFERROR(IF(ÉrdeklődőkAdatai[[#This Row],[Előrejelzés \nvége]] <>\"\",IF(ÉrdeklődőkAdatai[[#This Row],[Előrejelzés \nvége]] = \"Decemberi\",ÉrdeklődőkAdatai[Súlyozott \nelőrejelzés],0),\"\"),\"\")","v":""}]
[null,{"$f":"IFERROR(IF(AND(ÉrdeklődőkAdatai[[#This Row],[Érdeklődő neve]] <> \"\", ROW(ElőrejelzettÉrtékesítés[Érdeklődő neve])<>UtolsóBejegyzés),ÉrdeklődőkAdatai[Érdeklődő neve], \"\"),\"\")","v":""},{"$f":"IFERROR(IF(ÉrdeklődőkAdatai[[#This Row],[Előrejelzés \nvége]] <>\"\",IF(ÉrdeklődőkAdatai[[#This Row],[Előrejelzés \nvége]]= \"Január\",ÉrdeklődőkAdatai[Súlyozott \nelőrejelzés],0),\"\"),\"\")","v":""},{"$f":"IFERROR(IF(ÉrdeklődőkAdatai[[#This Row],[Előrejelzés \nvége]] <>\"\",IF(ÉrdeklődőkAdatai[[#This Row],[Előrejelzés \nvége]] = \"Február\",ÉrdeklődőkAdatai[Súlyozott \nelőrejelzés],0),\"\"),\"\")","v":""},{"$f":"IFERROR(IF(ÉrdeklődőkAdatai[[#This Row],[Előrejelzés \nvége]] <>\"\",IF(ÉrdeklődőkAdatai[[#This Row],[Előrejelzés \nvége]] = \"Március\",ÉrdeklődőkAdatai[Súlyozott \nelőrejelzés],0),\"\"),\"\")","v":""},{"$f":"IFERROR(IF(ÉrdeklődőkAdatai[[#This Row],[Előrejelzés \nvége]] <>\"\",IF(ÉrdeklődőkAdatai[[#This Row],[Előrejelzés \nvége]] = \"Áprilisi\",ÉrdeklődőkAdatai[Súlyozott \nelőrejelzés],0),\"\"),\"\")","v":""},{"$f":"IFERROR(IF(ÉrdeklődőkAdatai[[#This Row],[Előrejelzés \nvége]] <>\"\",IF(ÉrdeklődőkAdatai[[#This Row],[Előrejelzés \nvége]] = \"Májusi\",ÉrdeklődőkAdatai[Súlyozott \nelőrejelzés],0),\"\"),\"\")","v":""},{"$f":"IFERROR(IF(ÉrdeklődőkAdatai[[#This Row],[Előrejelzés \nvége]] <>\"\",IF(ÉrdeklődőkAdatai[[#This Row],[Előrejelzés \nvége]] = \"Júniusi\",ÉrdeklődőkAdatai[Súlyozott \nelőrejelzés],0),\"\"),\"\")","v":""},{"$f":"IFERROR(IF(ÉrdeklődőkAdatai[[#This Row],[Előrejelzés \nvége]] <>\"\",IF(ÉrdeklődőkAdatai[[#This Row],[Előrejelzés \nvége]] = \"Júliusi\",ÉrdeklődőkAdatai[Súlyozott \nelőrejelzés],0),\"\"),\"\")","v":""},{"$f":"IFERROR(IF(ÉrdeklődőkAdatai[[#This Row],[Előrejelzés \nvége]] <>\"\",IF(ÉrdeklődőkAdatai[[#This Row],[Előrejelzés \nvége]] = \"Augusztusi\",ÉrdeklődőkAdatai[Súlyozott \nelőrejelzés],0),\"\"),\"\")","v":""},{"$f":"IFERROR(IF(ÉrdeklődőkAdatai[[#This Row],[Előrejelzés \nvége]] <>\"\",IF(ÉrdeklődőkAdatai[[#This Row],[Előrejelzés \nvége]] = \"Szeptemberi\",ÉrdeklődőkAdatai[Súlyozott \nelőrejelzés],0),\"\"),\"\")","v":""},{"$f":"IFERROR(IF(ÉrdeklődőkAdatai[[#This Row],[Előrejelzés \nvége]] <>\"\",IF(ÉrdeklődőkAdatai[[#This Row],[Előrejelzés \nvége]] = \"Októberi\",ÉrdeklődőkAdatai[Súlyozott \nelőrejelzés],0),\"\"),\"\")","v":""},{"$f":"IFERROR(IF(ÉrdeklődőkAdatai[[#This Row],[Előrejelzés \nvége]] <>\"\",IF(ÉrdeklődőkAdatai[[#This Row],[Előrejelzés \nvége]] = \"Novemberi\",ÉrdeklődőkAdatai[Súlyozott \nelőrejelzés],0),\"\"),\"\")","v":""},{"$f":"IFERROR(IF(ÉrdeklődőkAdatai[[#This Row],[Előrejelzés \nvége]] <>\"\",IF(ÉrdeklődőkAdatai[[#This Row],[Előrejelzés \nvége]] = \"Decemberi\",ÉrdeklődőkAdatai[Súlyozott \nelőrejelzés],0),\"\"),\"\")","v":""}]
[null,"Összeg",{"$f":"SUBTOTAL(109,ElőrejelzettÉrtékesítés[Januári \nelőrejelzés])","v":{"v":270000,"d":"270,000 Ft"}},{"$f":"SUBTOTAL(109,ElőrejelzettÉrtékesítés[Februári \nelőrejelzés])","v":{"v":20000,"d":"20,000 Ft"}},{"$f":"SUBTOTAL(109,ElőrejelzettÉrtékesítés[Márciusi \nelőrejelzés])","v":{"v":20000,"d":"20,000 Ft"}},{"$f":"SUBTOTAL(109,ElőrejelzettÉrtékesítés[Áprilisi \nelőrejelzés])","v":{"v":0,"d":"0 Ft"}},{"$f":"SUBTOTAL(109,ElőrejelzettÉrtékesítés[Májusi \nelőrejelzés])","v":{"v":0,"d":"0 Ft"}},{"$f":"SUBTOTAL(109,ElőrejelzettÉrtékesítés[Júniusi \nelőrejelzés])","v":{"v":0,"d":"0 Ft"}},{"$f":"SUBTOTAL(109,ElőrejelzettÉrtékesítés[Júliusi előrejelzés])","v":{"v":0,"d":"0 Ft"}},{"$f":"SUBTOTAL(109,ElőrejelzettÉrtékesítés[Augusztusi \nelőrejelzés])","v":{"v":0,"d":"0 Ft"}},{"$f":"SUBTOTAL(109,ElőrejelzettÉrtékesítés[Szeptemberi \nelőrejelzés])","v":{"v":0,"d":"0 Ft"}},{"$f":"SUBTOTAL(109,ElőrejelzettÉrtékesítés[Októberi \nelőrejelzés])","v":{"v":0,"d":"0 Ft"}},{"$f":"SUBTOTAL(109,ElőrejelzettÉrtékesítés[Novemberi \nelőrejelzés])","v":{"v":0,"d":"0 Ft"}},{"$f":"SUBTOTAL(109,ElőrejelzettÉrtékesítés[Decemberi \nelőrejelzés])","v":{"v":0,"d":"0 Ft"}}]
[null,"Halmozott végösszeg",{"$f":"C20","v":{"v":270000,"d":"270,000 Ft"}},{"$f":"C21+D20","v":{"v":290000,"d":"290,000 Ft"}},{"$f":"D21+E20","v":{"v":310000,"d":"310,000 Ft"}},{"$f":"E21+F20","v":{"v":310000,"d":"310,000 Ft"}},{"$f":"F21+G20","v":{"v":310000,"d":"310,000 Ft"}},{"$f":"G21+H20","v":{"v":310000,"d":"310,000 Ft"}},{"$f":"H21+I20","v":{"v":310000,"d":"310,000 Ft"}},{"$f":"I21+J20","v":{"v":310000,"d":"310,000 Ft"}},{"$f":"J21+K20","v":{"v":310000,"d":"310,000 Ft"}},{"$f":"K21+L20","v":{"v":310000,"d":"310,000 Ft"}},{"$f":"L21+M20","v":{"v":310000,"d":"310,000 Ft"}},{"$f":"M21+N20","v":{"v":310000,"d":"310,000 Ft"}}]

{"sheet":"Havi súlyozott előrejelzés","index":2,"n_rows":3,"n_cols":2,"rows_kept":3}
[null,{"$f":"Cégnév","v":"Cég neve"}]
[null,"Havi súlyozott előrejelzés"]
[null," "]